[Event "Kragero Resort Chess A 2019"]
[Site "Kragero"]
[Date "2019.02.23"]
[Round "6.31"]
[White "Fivelstad, Jon Olav"]
[Black "Saltvedt, Martin"]
[Result "1/2-1/2"]
[ECO "B36"]
[WhiteElo "1900"]
[BlackElo "2095"]
[Annotator "NA RC"]
[PlyCount "44"]
[EventDate "2019.02.20"]
[EventType "swiss"]
[EventCountry "NOR"]
[SourceTitle "playchess.com"]
[Source "ChessBase"]
[SourceQuality "1"]
[TimeControl "5400+30"]

1. e4 {[%emt 0:00:00]} c5 {[%emt 0:00:00]} 2. Nf3 {[%emt 0:00:00]} Nc6 {[%emt 0:00:02]} 3. d4 {[%emt 0:00:08]} cxd4 {[%emt 0:00:07]} 4. Nxd4 {[%emt 0:00:06]} g6 {[%emt 0:00:42]} 5. c4 {[%emt 0:03:57]} Nf6 {[%emt 0:03:40]} 6. Nc3 {[%emt 0:00:15]} Nxd4 {[%emt 0:01:53]} 7. Qxd4 {[%emt 0:00:26]} d6 {[%emt 0:00:55]} 8. Be2 {[%emt 0:02:18]} Bg7 {[%emt 0:00:08]} 9. O-O {[%emt 0:06:01]} O-O {[%emt 0:00:21]} 10. Qd1 {[%emt 0:03:23]} a5 {[%emt 0:02:49]} 11. Be3 {[%emt 0:04:01]} Be6 {[%emt 0:02:17]} 12. Rc1 {[%emt 0:01:19]} Rc8 {[%emt 0:07:51]} 13. b3 {[%emt 0:04:40]} Nd7 {[%emt 0:01:28]} 14. Qd2 {[%emt 0:06:31]} Nc5 {[%emt 0:02:50]} 15. Bd4 {[%emt 0:02:38]} Qd7 {[%emt 0:09:58]} 16. Bxg7 {[%emt 0:01:17]} Kxg7 {[%emt 0:00:10]} 17. Qd4+ {[%emt 0:02:48]} f6 {[%emt 0:01:30]} 18. Rcd1 {[%emt 0:00:34]} h5 {[%emt 0:11:08]} 19. f4 {[%emt 0:12:00]} Bg4 {[%emt 0:06:46]} 20. Bf3 {[%emt 0:02:10]} Rfd8 {[%emt 0:10:53]} 21. h3 {[%emt 0:03:41]} Bxf3 {[%emt 0:06:40]} 22. Rxf3 {[%emt 0:00:09]} Ne6 {[%emt 0:04:31]} 1/2-1/2

[Event "Kragero Resort Chess A 2019"]
[Site "Kragero"]
[Date "2019.02.23"]
[Round "7.1"]
[White "Hammer, Jon Ludvig"]
[Black "Beerdsen, Thomas"]
[Result "1/2-1/2"]
[ECO "D94"]
[WhiteElo "2652"]
[BlackElo "2454"]
[Annotator "ChessBase"]
[PlyCount "60"]
[EventDate "2019.02.20"]
[EventType "swiss"]
[EventCountry "NOR"]
[SourceTitle "playchess.com"]
[Source "ChessBase"]
[SourceQuality "1"]
[TimeControl "5400+30"]

1. d4 {[%emt 0:00:00]} d5 {[%emt 0:03:54]} 2. c4 {[%emt 0:00:02]} c6 {[%emt 0:00:05]} 3. Nf3 {[%emt 0:00:26]} Nf6 {[%emt 0:00:05]} 4. e3 {[%emt 0:00:21]} g6 {[%emt 0:00:06]} 5. Nc3 {[%emt 0:04:30]} Bg7 {[%emt 0:00:06]} 6. Bd3 {[%emt 0:00:06]} O-O {[%emt 0:00:07]} 7. O-O {[%emt 0:00:05]} dxc4 {[%emt 0:00:06]} 8. Bxc4 {[%emt 0:00:06]} Nbd7 {[%emt 0:00:08]} 9. a3 {[%emt 0:01:54]} Nb6 {[%emt 0:01:14]} 10. Ba2 {[%emt 0:01:29]} Bg4 {[%emt 0:05:26]} 11. h3 {[%emt 0:00:19]} Bxf3 {[%emt 0:00:24]} 12. Qxf3 {[%emt 0:00:02]} Qd6 {[%emt 0:06:51]} 13. Rd1 {[%emt 0:10:03]} e5 {[%emt 0:02:20]} 14. Qg3 {[%emt 0:12:32]} Nh5 {[%emt 0:18:43]} 15. Qf3 {[%emt 0:16:57]} Nf6 {[%emt 0:01:20]} 16. dxe5 {[%emt 0:02:51]} Qxe5 {[%emt 0:00:04]} 17. Bd2 {[%emt 0:00:11]} Rad8 {[%emt 0:04:07]} 18. Be1 {[%emt 0:00:45]} Qe7 {[%emt 0:04:12]} 19. Rxd8 {[%emt 0:06:19]} Rxd8 {[%emt 0:00:12]} 20. Rd1 {[%emt 0:00:05]} Rxd1 {[%emt 0:04:16]} 21. Qxd1 {[%emt 0:00:06]} Nfd5 {[%emt 0:02:51]} 22. Nxd5 {[%emt 0:00:51]} Nxd5 {[%emt 0:00:08]} 23. Qb3 {[%emt 0:00:47]} Qd7 {[%emt 0:03:40]} 24. a4 {[%emt 0:03:11]} Qc7 {[%emt 0:03:36]} 25. a5 {[%emt 0:04:10]} h5 {[%emt 0:02:30]} 26. Qc2 {[%emt 0:01:55]} Qd6 {[%emt 0:03:33]} 27. a6 {[%emt 0:12:37]} bxa6 {[%emt 0:03:09]} 28. g3 {[%emt 0:04:46]} Qe6 {[%emt 0:04:02]} 29. Qa4 {[%emt 0:02:11]} Bxb2 {[%emt 0:03:55]} 30. Qxa6 {[%emt 0:01:40]} Qd7 {[%emt 0:03:49]} 1/2-1/2

[Event "Kragero Resort Chess A 2019"]
[Site "Kragero"]
[Date "2019.02.23"]
[Round "7.3"]
[White "Ragnarsson, Dagur"]
[Black "Lie, Kjetil A."]
[Result "0-1"]
[ECO "A62"]
[WhiteElo "2361"]
[BlackElo "2538"]
[Annotator "ChessBase"]
[PlyCount "102"]
[EventDate "2019.02.20"]
[EventType "swiss"]
[EventCountry "NOR"]
[SourceTitle "playchess.com"]
[Source "ChessBase"]
[SourceQuality "1"]
[TimeControl "5400+30"]

1. d4 {[%emt 0:00:00]} Nf6 {[%emt 0:00:00]} 2. c4 {[%emt 0:00:00]} e6 {[%emt 0:00:19]} 3. g3 {[%emt 0:00:00]} c5 {[%emt 0:01:49]} 4. d5 {[%emt 0:00:03]} exd5 {[%emt 0:00:18]} 5. cxd5 {[%emt 0:00:07]} d6 {[%emt 0:00:13]} 6. Nc3 {[%emt 0:00:05]} g6 {[%emt 0:00:20]} 7. Bg2 {[%emt 0:00:06]} Bg7 {[%emt 0:00:05]} 8. Nf3 {[%emt 0:00:06]} O-O {[%emt 0:00:09]} 9. O-O {[%emt 0:00:05]} Re8 {[%emt 0:01:48]} 10. a4 {[%emt 0:00:07]} Ne4 {[%emt 0:05:57]} 11. Nxe4 {[%emt 0:00:12]} Rxe4 {[%emt 0:00:05]} 12. Nd2 {[%emt 0:00:04]} Rb4 {[%emt 0:00:42]} 13. Ra2 {[%emt 0:00:05]} Bd7 {[%emt 0:06:55]} 14. b3 {[%emt 0:12:10]} b5 {[%emt 0:00:53]} 15. a5 {[%emt 0:05:12]} Na6 {[%emt 0:06:45]} 16. Ba3 {[%emt 0:08:54]} Qxa5 {[%emt 0:05:42]} 17. Qb1 {[%emt 0:00:59]} Qb6 {[%emt 0:01:22]} 18. e4 {[%emt 0:09:09]} Re8 {[%emt 0:02:26]} 19. Re1 {[%emt 0:01:18]} c4 {[%emt 0:06:52]} 20. Bxb4 {[%emt 0:00:05]} Nxb4 {[%emt 0:00:04]} 21. bxc4 {[%emt 0:00:06]} Nxa2 {[%emt 0:00:10]} 22. Qxa2 {[%emt 0:00:05]} Bd4 {[%emt 0:01:31]} 23. Nf3 {[%emt 0:01:10]} Bc3 {[%emt 0:03:41]} 24. Re3 {[%emt 0:00:49]} b4 {[%emt 0:00:39]} 25. Qe2 {[%emt 0:15:22]} Bg4 {[%emt 0:07:06]} 26. Qd3 {[%emt 0:01:20]} a5 {[%emt 0:02:30]} 27. e5 {[%emt 0:02:12]} Bxf3 {[%emt 0:04:40]} 28. Bxf3 {[%emt 0:00:13]} Bd4 {[%emt 0:05:02]} 29. Re4 {[%emt 0:00:42]} dxe5 {[%emt 0:03:48]} 30. Bd1 {[%emt 0:00:08]} Bxf2+ {[%emt 0:00:38]} 31. Kg2 {[%emt 0:00:06]} Bd4 {[%emt 0:00:16]} 32. g4 {[%emt 0:01:23]} Rb8 {[%emt 0:03:33]} 33. Bb3 {[%emt 0:00:14]} Qf6 {[%emt 0:01:37]} 34. Qc2 {[%emt 0:00:20]} Rc8 {[%emt 0:03:21]} 35. Re2 {[%emt 0:09:43]} Qh4 {[%emt 0:03:15]} 36. Qe4 {[%emt 0:00:08]} a4 {[%emt 0:03:14]} 37. Bxa4 {[%emt 0:00:12]} Rxc4 {[%emt 0:00:02]} 38. Rc2 {[%emt 0:01:52]} f5 {[%emt 0:07:57]} 39. Qe2 {[%emt 0:01:23]} Qxg4+ {[%emt 0:00:28]} 40. Qxg4 {[%emt 0:00:07]} Rxc2+ {[%emt 0:00:03]} 41. Bxc2 {[%emt 0:00:05]} fxg4 {[%emt 0:00:03]} 42. Kg3 {[%emt 0:01:54]} Bg1 {[%emt 0:00:40]} 43. d6 {[%emt 0:04:26]} Kf7 {[%emt 0:00:07]} 44. Bb3+ {[%emt 0:00:06]} Kf6 {[%emt 0:00:35]} 45. Ba2 {[%emt 0:01:25]} h5 {[%emt 0:00:34]} 46. d7 {[%emt 0:00:27]} Bb6 {[%emt 0:00:12]} 47. Bb3 {[%emt 0:00:13]} Kg5 {[%emt 0:00:29]} 48. Bc2 {[%emt 0:00:08]} h4+ {[%emt 0:01:02]} 49. Kg2 {[%emt 0:00:07]} Kf4 {[%emt 0:00:37]} 50. Bxg6 {[%emt 0:00:09]} h3+ {[%emt 0:00:31]} 51. Kh1 {[%emt 0:00:18]} b3 {[%emt 0:00:17]} 0-1

[Event "Kragero Resort Chess A 2019"]
[Site "Kragero"]
[Date "2019.02.23"]
[Round "7.7"]
[White "Kaasen, Tor Fredrik"]
[Black "Kjartansson, Gudmundur"]
[Result "0-1"]
[ECO "A25"]
[WhiteElo "2387"]
[BlackElo "2403"]
[Annotator "NA"]
[PlyCount "128"]
[EventDate "2019.02.20"]
[EventType "swiss"]
[EventCountry "NOR"]
[SourceTitle "playchess.com"]
[Source "ChessBase"]
[SourceQuality "1"]
[TimeControl "5400+30"]

1. c4 {[%emt 0:00:39]} e5 {[%emt 0:00:00]} 2. g3 {[%emt 0:00:50]} Nc6 {[%emt 0:00:00]} 3. Bg2 {[%emt 0:01:04]} Bc5 {[%emt 0:00:37]} 4. Nc3 {[%emt 0:00:38]} a6 {[%emt 0:00:13]} 5. Nf3 {[%emt 0:01:19]} d6 {[%emt 0:00:24]} 6. e3 {[%emt 0:02:16]} Ba7 {[%emt 0:00:43]} 7. O-O {[%emt 0:02:25]} Nge7 {[%emt 0:00:02]} 8. b3 {[%emt 0:00:34]} O-O {[%emt 0:01:10]} 9. Bb2 {[%emt 0:00:54]} Bg4 {[%emt 0:06:06]} 10. h3 {[%emt 0:03:30]} Bh5 {[%emt 0:00:09]} 11. g4 {[%emt 0:05:10]} Bg6 {[%emt 0:00:04]} 12. d4 {[%emt 0:00:14]} exd4 {[%emt 0:02:33]} 13. exd4 {[%emt 0:00:54]} h5 {[%emt 0:06:08]} 14. d5 {[%emt 0:03:51]} hxg4 {[%emt 0:01:27]} 15. hxg4 {[%emt 0:03:31]} Nb4 {[%emt 0:04:48]} 16. Ne1 {[%emt 0:05:55]} a5 {[%emt 0:00:20]} 17. a3 {[%emt 0:03:13]} Na6 {[%emt 0:00:06]} 18. Nd3 {[%emt 0:00:32]} Bxd3 {[%emt 0:03:26]} 19. Qxd3 {[%emt 0:00:15]} Ng6 {[%emt 0:00:11]} 20. Ne4 {[%emt 0:07:20]} Qh4 {[%emt 0:04:19]} 21. Qh3 {[%emt 0:03:39]} Qxh3 {[%emt 0:02:31]} 22. Bxh3 {[%emt 0:01:51]} Nf4 {[%emt 0:01:07]} 23. Bg2 {[%emt 0:05:41]} f5 {[%emt 0:02:51]} 24. gxf5 {[%emt 0:10:48]} Rxf5 {[%emt 0:00:19]} 25. Rae1 {[%emt 0:03:06]} Nc5 {[%emt 0:04:32]} 26. Ng3 {[%emt 0:07:13]} Rg5 {[%emt 0:01:23]} 27. Bc1 {[%emt 0:01:39]} Ncd3 {[%emt 0:03:07]} 28. Bxf4 {[%emt 0:03:34]} Nxf4 {[%emt 0:00:07]} 29. Re4 {[%emt 0:00:36]} Rf8 {[%emt 0:02:45]} 30. Kh2 {[%emt 0:00:49]} Rf6 {[%emt 0:02:04]} 31. Re8+ {[%emt 0:04:11]} Kf7 {[%emt 0:03:35]} 32. Rh8 {[%emt 0:00:59]} Bc5 {[%emt 0:13:24]} 33. Bh1 {[%emt 0:03:19]} Rgg6 {[%emt 0:01:35]} 34. Ne4 {[%emt 0:01:56]} Rh6+ {[%emt 0:00:41]} 35. Rxh6 {[%emt 0:00:03]} Rxh6+ {[%emt 0:00:05]} 36. Kg3 {[%emt 0:00:09]} Nh5+ {[%emt 0:13:37]} 37. Kf3 {[%emt 0:01:42]} Bxa3 {[%emt 0:00:15]} 38. Ng5+ {[%emt 0:00:24]} Kg8 {[%emt 0:03:16]} 39. Ne6 {[%emt 0:01:42]} c5 {[%emt 0:01:44]} 40. Ke2 {[%emt 0:02:30]} Bb2 {[%emt 0:01:01]} 41. Bf3 {[%emt 0:01:13]} Nf6 {[%emt 0:02:31]} 42. Rg1 {[%emt 0:00:42]} g6 {[%emt 0:00:40]} 43. Ke3 {[%emt 0:00:55]} Be5 {[%emt 0:01:37]} 44. Be2 {[%emt 0:01:04]} Kf7 {[%emt 0:01:00]} 45. f4 {[%emt 0:01:12]} Rh3+ {[%emt 0:01:53]} 46. Kd2 {[%emt 0:02:00]} Ne4+ {[%emt 0:00:37]} 47. Kd1 {[%emt 0:00:22]} Bf6 {[%emt 0:01:20]} 48. Rg2 {[%emt 0:01:31]} Rxb3 {[%emt 0:00:51]} 49. f5 {[%emt 0:00:37]} gxf5 {[%emt 0:05:43]} 50. Bh5+ {[%emt 0:00:36]} Ke7 {[%emt 0:00:05]} 51. Rg8 {[%emt 0:00:11]} Bc3 {[%emt 0:02:33]} 52. Rf8 {[%emt 0:00:23]} Rb1+ {[%emt 0:02:34]} 53. Ke2 {[%emt 0:01:56]} Ng3+ {[%emt 0:00:11]} 54. Kd3 {[%emt 0:00:01]} Nxh5 {[%emt 0:00:10]} 55. Kxc3 {[%emt 0:00:34]} Ng7 {[%emt 0:00:24]} 56. Rh8 {[%emt 0:00:02]} Nxe6 {[%emt 0:00:23]} 57. Rh7+ {[%emt 0:00:03]} Ng7 {[%emt 0:00:28]} 58. Rxg7+ {[%emt 0:00:05]} Kf6 {[%emt 0:00:08]} 59. Rh7 {[%emt 0:00:14]} Rb6 {[%emt 0:00:41]} 60. Rh8 {[%emt 0:00:25]} a4 {[%emt 0:00:16]} 61. Ra8 {[%emt 0:00:24]} Ra6 {[%emt 0:00:07]} 62. Rf8+ {[%emt 0:00:06]} Ke5 {[%emt 0:00:17]} 63. Kb2 {[%emt 0:00:05]} a3+ {[%emt 0:00:06]} 64. Ka2 {[%emt 0:00:01]} f4 {[%emt 0:01:00]} 0-1

[Event "Kragero Resort Chess A 2019"]
[Site "Kragero"]
[Date "2019.02.23"]
[Round "7.8"]
[White "Osmak, Iulija"]
[Black "Khachatryan, Vahagn"]
[Result "1/2-1/2"]
[ECO "C47"]
[WhiteElo "2394"]
[BlackElo "2274"]
[Annotator "NA"]
[PlyCount "49"]
[EventDate "2019.02.20"]
[EventType "swiss"]
[EventCountry "NOR"]
[SourceTitle "playchess.com"]
[Source "ChessBase"]
[SourceQuality "1"]
[TimeControl "5400+30"]

1. e4 {[%emt 0:01:15]} e5 {[%emt 0:00:00]} 2. Nf3 {[%emt 0:00:11]} Nf6 {[%emt 0:00:00]} 3. Nc3 {[%emt 0:01:01]} Nc6 {[%emt 0:00:34]} 4. d4 {[%emt 0:00:09]} exd4 {[%emt 0:00:26]} 5. Nxd4 {[%emt 0:00:04]} Bb4 {[%emt 0:00:58]} 6. Nxc6 {[%emt 0:00:14]} bxc6 {[%emt 0:00:02]} 7. Bd3 {[%emt 0:00:06]} d5 {[%emt 0:01:21]} 8. exd5 {[%emt 0:00:33]} cxd5 {[%emt 0:00:49]} 9. O-O {[%emt 0:00:11]} O-O {[%emt 0:00:02]} 10. h3 {[%emt 0:00:17]} c6 {[%emt 0:02:48]} 11. Qf3 {[%emt 0:00:28]} a5 {[%emt 0:02:09]} 12. Bg5 {[%emt 0:06:02]} Ba6 {[%emt 0:10:44]} 13. Rad1 {[%emt 0:11:26]} Bxd3 {[%emt 0:07:02]} 14. Rxd3 {[%emt 0:10:52]} Be7 {[%emt 0:03:54]} 15. Ne2 {[%emt 0:01:53]} Ne4 {[%emt 0:04:18]} 16. Bxe7 {[%emt 0:01:34]} Qxe7 {[%emt 0:00:02]} 17. Nd4 {[%emt 0:02:34]} Rfe8 {[%emt 0:05:01]} 18. Rfd1 {[%emt 0:08:22]} a4 {[%emt 0:05:37]} 19. c4 {[%emt 0:12:24]} dxc4 {[%emt 0:06:49]} 20. Nxc6 {[%emt 0:03:17]} Qe6 {[%emt 0:19:03]} 21. Rd7 {[%emt 0:07:27]} a3 {[%emt 0:03:37]} 22. bxa3 {[%emt 0:20:01]} c3 {[%emt 0:00:01]} 23. Nd8 {[%emt 0:00:03]} Qf6 {[%emt 0:00:01]} 24. Nxf7 {[%emt 0:00:03]} c2 {[%emt 0:00:03]} 25. Rc1 1/2-1/2

[Event "Kragero Resort Chess A 2019"]
[Site "Kragero"]
[Date "2019.02.23"]
[Round "7.10"]
[White "Sgircea, Silvia-Raluca"]
[Black "Hauge, Lars Oskar"]
[Result "0-1"]
[ECO "A87"]
[WhiteElo "2251"]
[BlackElo "2476"]
[Annotator "ChessBase"]
[PlyCount "104"]
[EventDate "2019.02.20"]
[EventType "swiss"]
[EventCountry "NOR"]
[SourceTitle "playchess.com"]
[Source "ChessBase"]
[SourceQuality "1"]
[TimeControl "5400+30"]

1. Nf3 {[%emt 0:00:39]} f5 {[%emt 0:00:00]} 2. c4 {[%emt 0:01:34]} Nf6 {[%emt 0:00:00]} 3. g3 {[%emt 0:00:05]} g6 {[%emt 0:00:02]} 4. Bg2 {[%emt 0:00:04]} Bg7 {[%emt 0:00:04]} 5. O-O {[%emt 0:00:07]} O-O {[%emt 0:00:04]} 6. d4 {[%emt 0:00:45]} e6 {[%emt 0:00:26]} 7. b3 {[%emt 0:02:11]} d6 {[%emt 0:00:38]} 8. Bb2 {[%emt 0:00:46]} Qe7 {[%emt 0:01:29]} 9. Qc2 {[%emt 0:01:17]} Nc6 {[%emt 0:00:26]} 10. Nc3 {[%emt 0:04:13]} Kh8 {[%emt 0:04:06]} 11. Rad1 {[%emt 0:01:44]} Bd7 {[%emt 0:01:29]} 12. a3 {[%emt 0:05:42]} Nd8 {[%emt 0:04:45]} 13. b4 {[%emt 0:19:40]} Nf7 {[%emt 0:00:09]} 14. Nd2 {[%emt 0:01:02]} Rab8 {[%emt 0:01:01]} 15. e4 {[%emt 0:01:13]} f4 {[%emt 0:00:23]} 16. gxf4 {[%emt 0:01:47]} Nh5 {[%emt 0:00:25]} 17. Ne2 {[%emt 0:01:10]} Nh6 {[%emt 0:00:16]} 18. e5 {[%emt 0:11:38]} Nxf4 {[%emt 0:00:32]} 19. Nxf4 {[%emt 0:00:05]} Rxf4 {[%emt 0:00:05]} 20. exd6 {[%emt 0:01:35]} cxd6 {[%emt 0:00:21]} 21. Ne4 {[%emt 0:00:52]} Rbf8 {[%emt 0:02:24]} 22. Bc1 {[%emt 0:01:29]} R4f5 {[%emt 0:00:38]} 23. Ng3 {[%emt 0:03:42]} R5f7 {[%emt 0:01:03]} 24. Qe4 {[%emt 0:04:55]} b6 {[%emt 0:01:09]} 25. b5 {[%emt 0:09:12]} Rc8 {[%emt 0:00:57]} 26. Qe2 {[%emt 0:00:38]} Qh4 {[%emt 0:00:13]} 27. Qe4 {[%emt 0:01:47]} Qd8 {[%emt 0:00:42]} 28. Qe2 {[%emt 0:00:12]} Qc7 {[%emt 0:00:20]} 29. Ne4 {[%emt 0:00:16]} Nf5 {[%emt 0:00:23]} 30. d5 {[%emt 0:06:22]} e5 {[%emt 0:00:59]} 31. Ng5 {[%emt 0:00:09]} Rf6 {[%emt 0:00:09]} 32. Ne6 {[%emt 0:00:32]} Bxe6 {[%emt 0:01:46]} 33. dxe6 {[%emt 0:00:01]} Rxe6 {[%emt 0:00:08]} 34. Bd5 {[%emt 0:00:37]} Rf6 {[%emt 0:00:23]} 35. Bg5 {[%emt 0:00:58]} Rff8 {[%emt 0:00:07]} 36. Qd3 {[%emt 0:03:16]} Nd4 {[%emt 0:00:52]} 37. Be3 {[%emt 0:01:13]} Nf5 {[%emt 0:01:13]} 38. a4 {[%emt 0:00:28]} Qd7 {[%emt 0:01:07]} 39. f3 {[%emt 0:04:26]} Nd4 {[%emt 0:01:47]} 40. Bxd4 {[%emt 0:01:51]} exd4 {[%emt 0:00:12]} 41. f4 {[%emt 0:00:06]} Qg4+ {[%emt 0:01:45]} 42. Qg3 {[%emt 0:00:57]} Rxf4 {[%emt 0:00:19]} 43. Rxf4 {[%emt 0:02:02]} Qxd1+ {[%emt 0:00:13]} 44. Rf1 {[%emt 0:00:02]} Qe2 {[%emt 0:01:11]} 45. Qxd6 {[%emt 0:01:23]} d3 {[%emt 0:01:13]} 46. Bf3 {[%emt 0:02:55]} Qe3+ {[%emt 0:00:09]} 47. Kh1 {[%emt 0:00:07]} Rf8 {[%emt 0:00:19]} 48. Kg2 {[%emt 0:01:04]} d2 {[%emt 0:01:32]} 49. Qd5 {[%emt 0:00:45]} h5 {[%emt 0:00:44]} 50. Rd1 {[%emt 0:01:19]} Bd4 {[%emt 0:00:08]} 51. Rf1 {[%emt 0:00:56]} Be5 {[%emt 0:00:23]} 52. Rd1 {[%emt 0:00:53]} Qg5+ {[%emt 0:00:40]} 0-1

[Event "Kragero Resort Chess A 2019"]
[Site "Kragero"]
[Date "2019.02.23"]
[Round "7.11"]
[White "Ingebretsen, Jens E"]
[Black "Thorfinnsson, Bragi"]
[Result "0-1"]
[ECO "A40"]
[WhiteElo "2297"]
[BlackElo "2438"]
[Annotator "NA"]
[PlyCount "72"]
[EventDate "2019.02.20"]
[EventType "swiss"]
[EventCountry "NOR"]
[SourceTitle "playchess.com"]
[Source "ChessBase"]
[SourceQuality "1"]
[TimeControl "5400+30"]

1. c4 {[%emt 0:00:00]} b6 {[%emt 0:05:23]} 2. e4 {[%emt 0:00:10]} Bb7 {[%emt 0:00:50]} 3. Nc3 {[%emt 0:00:08]} e6 {[%emt 0:00:42]} 4. d4 {[%emt 0:00:44]} Bb4 {[%emt 0:00:30]} 5. Bd3 {[%emt 0:00:40]} f5 {[%emt 0:09:25]} 6. d5 {[%emt 0:03:07]} fxe4 {[%emt 0:10:21]} 7. Bxe4 {[%emt 0:02:38]} Qh4 {[%emt 0:00:34]} 8. Qe2 {[%emt 0:01:54]} Nf6 {[%emt 0:00:38]} 9. Bf3 {[%emt 0:09:58]} O-O {[%emt 0:01:28]} 10. dxe6 {[%emt 0:03:43]} Nc6 {[%emt 0:02:22]} 11. Be3 {[%emt 0:01:04]} Ne4 {[%emt 0:08:40]} 12. Rc1 {[%emt 0:16:28]} Ne5 {[%emt 0:04:20]} 13. Bd4 {[%emt 0:02:14]} Qf4 {[%emt 0:09:12]} 14. Rc2 {[%emt 0:03:17]} c5 {[%emt 0:07:44]} 15. Bxe5 {[%emt 0:11:49]} Qxe5 {[%emt 0:00:07]} 16. Bxe4 {[%emt 0:00:09]} Qxe4 {[%emt 0:01:00]} 17. f3 {[%emt 0:01:37]} Qh4+ {[%emt 0:03:48]} 18. Qf2 {[%emt 0:02:57]} Qxc4 {[%emt 0:00:37]} 19. exd7 {[%emt 0:00:18]} Qe6+ {[%emt 0:03:36]} 20. Nge2 {[%emt 0:01:08]} c4 {[%emt 0:02:19]} 21. Qh4 {[%emt 0:01:38]} Be7 {[%emt 0:03:19]} 22. Qg3 {[%emt 0:02:30]} Bc5 {[%emt 0:00:59]} 23. Rd2 {[%emt 0:01:57]} Rad8 {[%emt 0:00:31]} 24. h4 {[%emt 0:02:12]} Be3 {[%emt 0:03:01]} 25. Rd6 {[%emt 0:04:07]} Qe7 {[%emt 0:00:27]} 26. Rd1 {[%emt 0:03:26]} Rxd7 {[%emt 0:01:08]} 27. Qg4 {[%emt 0:01:00]} Rxd1+ {[%emt 0:02:04]} 28. Nxd1 {[%emt 0:00:09]} Bf4 {[%emt 0:02:40]} 29. Kf1 {[%emt 0:01:30]} Bc8 {[%emt 0:02:58]} 30. Qh5 {[%emt 0:00:06]} Rf5 {[%emt 0:01:13]} 31. Qg4 {[%emt 0:00:18]} Rf8 {[%emt 0:01:40]} 32. Qh5 {[%emt 0:00:08]} Rf5 {[%emt 0:01:06]} 33. Qg4 {[%emt 0:01:05]} Qd6 {[%emt 0:00:18]} 34. Ndc3 {[%emt 0:00:56]} h5 {[%emt 0:00:27]} 35. Qh3 {[%emt 0:01:05]} Rf8 {[%emt 0:00:17]} 36. Ne4 {[%emt 0:01:01]} Qd3 {[%emt 0:01:09]} 0-1

[Event "Kragero Resort Chess A 2019"]
[Site "Kragero"]
[Date "2019.02.23"]
[Round "7.12"]
[White "Mikalsen, Erlend"]
[Black "Ranaldi, Lucas"]
[Result "1-0"]
[ECO "B19"]
[WhiteElo "2406"]
[BlackElo "2229"]
[Annotator "NA"]
[PlyCount "117"]
[EventDate "2019.02.20"]
[EventType "swiss"]
[EventCountry "NOR"]
[SourceTitle "playchess.com"]
[Source "ChessBase"]
[SourceQuality "1"]
[TimeControl "5400+30"]

1. e4 {[%emt 0:00:00]} c6 {[%emt 0:00:03]} 2. d4 {[%emt 0:00:00]} d5 {[%emt 0:00:12]} 3. Nc3 {[%emt 0:00:00]} dxe4 {[%emt 0:00:14]} 4. Nxe4 {[%emt 0:00:00]} Bf5 {[%emt 0:00:37]} 5. Ng3 {[%emt 0:00:00]} Bg6 {[%emt 0:00:05]} 6. h4 {[%emt 0:00:00]} h6 {[%emt 0:00:05]} 7. Nf3 {[%emt 0:00:01]} Nd7 {[%emt 0:00:06]} 8. h5 {[%emt 0:00:03]} Bh7 {[%emt 0:00:04]} 9. Bd3 {[%emt 0:00:02]} Bxd3 {[%emt 0:00:07]} 10. Qxd3 {[%emt 0:00:03]} e6 {[%emt 0:00:09]} 11. Bd2 {[%emt 0:00:03]} Ngf6 {[%emt 0:00:06]} 12. O-O-O {[%emt 0:00:05]} Be7 {[%emt 0:00:08]} 13. Ne4 {[%emt 0:00:08]} Nxe4 {[%emt 0:00:04]} 14. Qxe4 {[%emt 0:00:03]} Nf6 {[%emt 0:00:09]} 15. Qe2 {[%emt 0:00:02]} Qd5 {[%emt 0:00:06]} 16. Kb1 {[%emt 0:00:04]} O-O {[%emt 0:00:09]} 17. Ne5 {[%emt 0:00:09]} Qe4 {[%emt 0:00:04]} 18. Qxe4 {[%emt 0:00:22]} Nxe4 {[%emt 0:00:02]} 19. Be3 {[%emt 0:00:06]} Rfd8 {[%emt 0:00:06]} 20. Nd3 {[%emt 0:10:05]} Nf6 {[%emt 0:00:04]} 21. f3 {[%emt 0:01:41]} b5 {[%emt 0:02:23]} 22. c3 {[%emt 0:04:50]} Rac8 {[%emt 0:05:19]} 23. g4 {[%emt 0:00:12]} a6 {[%emt 0:02:06]} 24. Ne5 {[%emt 0:08:23]} Nd7 {[%emt 0:10:11]} 25. Kc2 {[%emt 0:05:26]} Nxe5 {[%emt 0:10:14]} 26. dxe5 {[%emt 0:00:07]} Rd5 {[%emt 0:00:12]} 27. Rxd5 {[%emt 0:01:16]} cxd5 {[%emt 0:00:28]} 28. Kd3 {[%emt 0:00:50]} f6 {[%emt 0:08:22]} 29. exf6 {[%emt 0:02:47]} Bxf6 {[%emt 0:00:11]} 30. f4 {[%emt 0:00:54]} Rf8 {[%emt 0:10:09]} 31. g5 {[%emt 0:04:56]} Be7 {[%emt 0:00:51]} 32. gxh6 {[%emt 0:05:33]} gxh6 {[%emt 0:00:08]} 33. Rg1+ {[%emt 0:01:12]} Kh7 {[%emt 0:00:56]} 34. Rg6 {[%emt 0:06:46]} Rf6 {[%emt 0:01:08]} 35. Rxf6 {[%emt 0:00:05]} Bxf6 {[%emt 0:00:08]} 36. Bd4 {[%emt 0:00:09]} Kg7 {[%emt 0:00:57]} 37. Be5 {[%emt 0:00:10]} Kf7 {[%emt 0:01:18]} 38. Kd4 {[%emt 0:00:36]} Be7 {[%emt 0:01:00]} 39. f5 {[%emt 0:04:17]} b4 {[%emt 0:11:45]} 40. fxe6+ {[%emt 0:05:02]} Kxe6 {[%emt 0:00:12]} 41. Bg7 {[%emt 0:00:09]} bxc3 {[%emt 0:00:31]} 42. bxc3 {[%emt 0:00:30]} Bg5 {[%emt 0:01:59]} 43. Kc5 {[%emt 0:00:07]} Be3+ {[%emt 0:14:18]} 44. Bd4 {[%emt 0:00:56]} Bf4 {[%emt 0:01:20]} 45. Kb6 {[%emt 0:02:28]} Kd6 {[%emt 0:05:13]} 46. Kxa6 {[%emt 0:00:19]} Kc6 {[%emt 0:00:08]} 47. Ka5 {[%emt 0:00:11]} Bc7+ {[%emt 0:00:26]} 48. Kb4 {[%emt 0:00:25]} Bd6+ {[%emt 0:00:26]} 49. Kb3 {[%emt 0:00:03]} Bf4 {[%emt 0:02:52]} 50. Kc2 {[%emt 0:00:43]} Kb5 {[%emt 0:00:49]} 51. Kd3 {[%emt 0:00:05]} Bd6 {[%emt 0:02:11]} 52. Ke3 {[%emt 0:01:59]} Be7 {[%emt 0:02:59]} 53. Kf4 {[%emt 0:00:20]} Kc4 {[%emt 0:00:23]} 54. Ke5 {[%emt 0:00:42]} Ba3 {[%emt 0:03:43]} 55. Ke6 {[%emt 0:00:45]} Bc1 {[%emt 0:02:42]} 56. Kd6 {[%emt 0:01:12]} Bg5 {[%emt 0:01:38]} 57. Kc6 {[%emt 0:01:00]} Bd8 {[%emt 0:00:21]} 58. a4 {[%emt 0:01:12]} Ba5 {[%emt 0:00:13]} 59. Bf6 {[%emt 0:00:12]} 1-0